Cogmind - Beta 17 @@@ ROGUE MODE // 2026.08.22 @ 15:11:38 Player: SA-TR1 Result: Core melted Performance ------------- Evolutions (7) 3500 Regions Visited (25) 5000 Robots Destroyed (310) 1550 Value Destroyed (16464) 16464 Prototype IDs (58) 1160 Alien Tech Used (0) 0 Bonus (14736) 14736 TOTAL SCORE: 42410 Bonus ------- High Alert Combat Kills 2509 Follower Combat Kills 5445 Entered Garrisons 1000 Used RIF Installer 2500 Network Hubs Disabled 200 Aligned with FarCom 300 Built Enhanced Grunts 300 A7 Reached Mainframe 300 Met R17 at Cetus 500 Met R17 at Research 2000 Friendly Fire -318 Cogmind --------- Core Integrity 0/1300 Matter 217/300 Energy 39/100 System Corruption 5% Temperature Critical (1060) Movement Hovering (80) Location -3/Testing Parts ------- > --- POWER (2) -------- (None) > --- PROPULSION (4) --- Backup Propulsion VII Backup Propulsion VII Cooled Antigrav System > --- UTILITY (11) ----- Machine Analyzer Enhanced Optical Array Experimental Signal Interpreter Relay Coupler [Hunter] (20) > --- WEAPON (4) ------- (None) > --- INVENTORY (5) ---- Large Storage Unit Superbattery (337) Long-range Sensor Array Compact HERF Cannon Tiamat Missile Launcher Peak State ------------ > --- POWER ------------ Backup Power VII Micro Antimatter Reactor > --- PROPULSION ------- Flexi-carbon Leg Myomer Leg Biometal Leg Improved Thunder Leg > --- UTILITY ---------- Advanced Heat Sink Machine Analyzer Enhanced Optical Array Experimental Signal Interpreter Seismic Detector Advanced Transmission Jammer Improved Cloaking Device Layered Medium Armor Plating Advanced Force Field Relay Coupler [Sentry] Relay Coupler [Hunter] > --- WEAPON ----------- Backup Laser VII Advanced Variable Charge Gun Heavy Machine Gun Advanced Micro-nuke Launcher > --- INVENTORY -------- Myomer Leg Superbattery Experimental EM Disruption Field Long-range Proton Cannon Tiamat Missile Launcher [Rating: 133] Favorites ----------- Power Enhanced Fission Core Engine Improved Deuterium Engine Power Core Enhanced Fission Core Reactor Quantum Reactor Propulsion Armored Huge Wheel Treads Advanced Medium Treads Leg Improved Thunder Leg Wheel Armored Huge Wheel Hover Unit Backup Propulsion III Flight Unit Xenon Bombardment Thruster Utility Huge Storage Unit Device Advanced Heat Sink Storage Huge Storage Unit Processor Enhanced Optical Array Hackware Relay Coupler [Hunter] Protection Centrium Medium Armor Plating Weapon Shock Rifle Energy Gun Shock Rifle Energy Cannon Beam Cannon Ballistic Gun XL Autogun Subcomponent Ballistic Cannon Hardcell Cannon Launcher Tiamat Missile Launcher Special Weapon Remote Datajack Impact Weapon Impact Mace Piercing Weapon Makeshift Spear Build | -11 -10 -10 -10 -9 -8 -8 -8 -8 -7 -7 -7 -7 -7 -7 -7 -5 -5 -5 -5 -5 -4 -4 -4 -3 -3 ------- Run | Yrd Mat Min Exi Min Mat Gar Mat Gar Fac Gar Fac Sto Gar Rec Scr Fac Ext Cet Arc Hub Fac Gar Fac Res Tes Slots Evolved 14 | . . . . . 4 . . . 2 . . . . . . 4 . . . . 2 . . 2 . Power 1 | . . . . . . . . . . . . . . . . 1 . . . . . . . . . Propulsion 2 | . . . . . . . . . . . . . . . . . . . . . . . . 2 . Utility 9 | . . . . . 2 . . . 2 . . . . . . 3 . . . . 2 . . . . Weapon 2 | . . . . . 2 . . . . . . . . . . . . . . . . . . . . Parts Attached 307 | 6 11 1 1 4 6 19 8 11 29 12 1 6 10 3 3 9 9 15 1 12 5 23 57 34 11 Power 35 | 1 1 . . 1 1 2 . 2 5 1 . 1 1 . . 2 . 2 . . 1 2 5 7 . Engine 10 | 1 . . . 1 1 2 . 1 . 1 . 1 1 . . . . . . . . . . 1 . Core 14 | . 1 . . . . . . 1 5 . . . . . . 2 . . . . 1 2 2 . . Reactor 11 | . . . . . . . . . . . . . . . . . . 2 . . . . 3 6 . Propulsion 48 | 2 3 . . 1 . 1 2 1 3 1 . . 1 . 1 . . 1 . 1 1 4 11 8 6 Treads 11 | 1 1 . . . . . . 1 . . . . . . . . . 1 . . 1 4 2 . . Leg 6 | . . . . . . . . . . . . . . . . . . . . . . . . 5 1 Wheel 23 | 1 2 . . 1 . 1 2 . 3 1 . . 1 . 1 . . . . 1 . . 9 . . Hover 6 | . . . . . . . . . . . . . . . . . . . . . . . . 3 3 Flight 2 | . . . . . . . . . . . . . . . . . . . . . . . . . 2 Utility 141 | 1 2 . . 1 2 4 . 6 17 7 1 . 7 3 1 5 4 6 1 7 3 13 33 12 5 Device 51 | . 1 . . . 2 2 . . 4 . . . . 1 . 1 . 2 1 . 2 6 16 9 4 Storage 7 | 1 1 . . 1 . . . . 1 . . . . . . . . . . 1 . . 2 . . Processor 12 | . . . . . . . . . 1 . . . . . . 2 . . . 1 . 1 6 1 . Hackware 47 | . . . . . . . . 4 8 7 . . 6 1 1 1 3 . . 3 . 6 6 1 . Protection 24 | . . . . . . 2 . 2 3 . 1 . 1 1 . 1 1 4 . 2 1 . 3 1 1 Artifact . | . . . . . . . . . . . . . . . . . . . . . . . . . . Weapon 83 | 2 5 1 1 1 3 12 6 2 4 3 . 5 1 . 1 2 5 6 . 4 . 4 8 7 . Energy Gun 29 | 2 1 1 1 1 1 5 6 1 . . . . . . . . 2 1 . 2 . 2 2 1 . Energy Cannon 6 | . . . . . . 2 . . . . . . . . . . . . . 1 . . 2 1 . Ballistic Gun 22 | . 2 . . . 2 1 . . 2 . . 4 1 . . 1 3 4 . . . 1 . 1 . Ballistic Cannon 7 | . 1 . . . . 1 . . . . . . . . . . . . . . . 1 3 1 . Launcher 6 | . . . . . . 2 . . 1 1 . . . . . . . . . . . . . 2 . Special Weapon 10 | . 1 . . . . . . 1 1 2 . . . . 1 1 . 1 . 1 . . 1 . . Impact Weapon 1 | . . . . . . . . . . . . 1 . . . . . . . . . . . . . Slashing Weapon . | . . . . . . . . . . . . . . . . . . . . . . . . . . Piercing Weapon 2 | . . . . . . 1 . . . . . . . . . . . . . . . . . 1 . Special Melee Weapon . | . . . . . . . . . . . . . . . . . . . . . . . . . . Unidentified Prototypes 22 | . . . . . . . 1 . 1 . . 3 . . . . 2 4 . 1 . . 2 5 3 Corrupted Parts 1 | . . . . . . . . . . . . . . . . . . . . . . . 1 . . System Corruption 3 | . . . . . . . . . . . . . . . . . . . . . . . 3 . . Parts Lost 126 | . 2 2 . 1 2 9 . 4 8 2 . . 2 . . . . 2 . 8 . 13 45 17 9 Power 17 | . 1 1 . . . 1 . 1 2 . . . . . . . . . . 1 . 1 4 3 2 Propulsion 28 | . . . . . . 2 . 1 . . . . . . . . . . . 1 . 3 10 7 4 Utility 45 | . . . . . . 1 . 1 4 2 . . 2 . . . . 2 . 3 . 6 18 4 2 Weapon 36 | . 1 1 . 1 2 5 . 1 2 . . . . . . . . . . 3 . 3 13 3 1 Highest Loss Streak 13 | . 1 1 . 1 2 5 . 4 2 2 . . 1 . . . . 1 . 7 . 5 6 13 9 To Critical Strikes . | . . . . . . . . . . . . . . . . . . . . . . . . . . Average Backups 19 | 1 13 19 16 16 16 18 18 19 18 20 21 20 20 20 21 22 22 22 23 22 20 22 20 4 4 Power . | . . . . . 1 . . . . 1 . . . . . . 1 1 1 1 1 . 1 . . Propulsion 1 | 1 4 5 3 3 3 1 1 . 1 1 1 1 1 1 . . . . . . 3 2 2 . . Utility 9 | . 2 4 3 3 4 9 11 10 10 11 14 14 13 14 15 12 10 10 11 9 7 8 8 2 2 Weapon 5 | . 6 10 9 9 8 6 6 6 4 3 2 2 3 3 4 6 7 9 9 9 6 8 5 1 1 Tool/Special . | . . . . . . . . . . . . . . . . . . . . . . . . . . Unused Backups 32 | . . . 2 . . 1 . 2 4 2 1 . 2 . . 2 . . . . . 4 6 3 3 Power 1 | . . . . . . . . . . . . . . . . . . . . . . . . 1 . Propulsion 3 | . . . . . . . . . 2 . . . . . . . . . . . . 1 . . . Utility 15 | . . . 2 . . . . 2 1 2 1 . 2 . . 1 . . . . . 1 2 . 1 Weapon 11 | . . . . . . 1 . . 1 . . . . . . 1 . . . . . 2 2 2 2 Tool/Special 2 | . . . . . . . . . . . . . . . . . . . . . . . 2 . . Average Slot Usage (%) 87 | . 96 96 85 97 91 96 99 95 80 70 68 69 91 92 92 82 87 91 94 92 81 97 85 75 42 Engine 2 | . . . . 12 9 9 9 5 . 2 7 7 6 7 7 3 . . . . . . . . 3 Core 4 | . 12 11 . . . . . 3 6 4 . . . . . 2 11 1 . . 2 9 7 2 . Reactor 1 | . . . . . . . . . . . . . . . . . . 9 11 10 5 . 2 3 . Treads 3 | . 8 14 14 7 . 2 5 5 . . . . . . . . . . . . 3 8 4 . . Wheel 7 | . 19 14 14 20 18 15 12 10 9 7 7 7 7 7 7 5 5 4 5 4 5 1 2 . . Device 9 | . 10 14 14 14 22 17 18 10 4 . . . . . . . 2 11 17 13 11 18 13 10 4 Storage 6 | . 14 14 14 14 9 9 9 9 7 7 7 7 7 7 7 5 5 5 5 5 5 5 4 . 2 Processor 1 | . . . . . . . . . . . . . . . . 4 5 . . . . . 5 14 14 Hackware 18 | . . . . . . . . 7 24 31 30 30 29 30 30 23 23 20 17 20 15 23 24 9 7 Protection 5 | . . . . . . 9 9 7 6 2 6 7 7 6 7 9 8 11 11 10 11 6 2 1 . Energy Gun 7 | . 5 9 23 28 14 15 19 33 7 . . . . . . . 1 2 . 1 . 2 1 6 . Ballistic Gun 9 | . 19 4 . . 15 7 7 . 2 2 6 6 24 25 23 17 19 18 23 18 20 14 1 2 . Ballistic Cannon 1 | . 2 14 4 . 2 . . . . 1 . . . . . . . . . . . 1 6 . . Special Weapon 1 | . . . . . . . . 1 2 3 . . 4 4 7 3 1 1 . 1 . 1 2 . . Peak Build Rating 133 | 6 11 11 15 17 27 47 42 60 81 76 78 79 69 68 65 89 92 114 115 118 121 125 123 133 65 Average Rating 70 | 5 9 10 12 16 22 35 37 42 57 64 76 76 66 64 63 78 88 104 113 111 102 115 103 96 50 On Entrance 56 | . 6 11 8 15 17 27 35 42 46 50 73 78 67 66 63 65 89 89 114 114 97 116 115 32 36 Avg Prop Armor Cover (%) 10 | 12 12 12 15 14 . 6 6 8 8 . . . . . . . . . . . 4 4 6 6 26 Naked Turns . | . . . . . . . . . . . . . . . . . . . . . . . . . . Heaviest Build 181 | 14 53 51 46 88 96 121 121 169 156 153 112 113 114 111 109 146 150 167 159 181 151 151 172 86 15 Greatest Support 101 | 20 26 16 16 26 26 26 20 20 28 28 28 28 28 28 28 28 28 80 28 28 30 60 75 101 13 Greatest Overweight (x) 43 | . 3 3 2 3 3 11 12 10 10 5 3 4 4 3 3 5 5 5 5 11 9 9 43 2 3 Average Overweight (x) 3 | . 1 2 2 2 3 5 8 8 4 3 3 3 3 3 3 4 4 4 5 5 8 4 3 . . Largest Inventory Capacity 25 | 8 20 20 20 25 25 25 25 25 25 25 25 25 25 25 25 25 25 25 25 25 25 25 25 5 5 Average Capacity 23 | 7 18 20 20 22 25 25 25 25 24 25 25 25 25 25 25 25 25 25 25 25 25 25 24 5 5 Most Carried 25 | 4 20 20 20 25 25 25 25 25 25 25 25 25 25 25 25 25 25 25 25 25 25 25 25 5 5 Average Carried 22 | 2 13 19 19 21 22 24 24 24 22 23 24 24 24 24 24 24 24 24 25 24 21 24 22 4 4 Final Capacity 25 | 8 20 20 20 25 25 25 25 25 25 25 25 25 25 25 25 25 25 25 25 25 25 25 5 5 5 Final Carried 25 | 4 20 19 20 24 25 25 25 25 25 25 25 25 25 25 25 25 25 25 25 18 25 25 4 5 5 Class Distribution -------------------- 29% | Botlord-Tank 21% | Bothacker-Tank 11% | Mutant 8% | Scavenger-Skirmisher 8% | Bothacker-Mutant 7% | Bothacker-Skirmisher 3% | Commander-Tank 3% | Skirmisher 3% | Bothacker-Gunner Dominant Class ---------------- Mutant | -10/Materials Mutant | -10/Mines Mutant | -10/Exiles Mutant | -9/Mines Scavenger-Skirmisher | -8/Materials Scavenger-Skirmisher | -8/Garrison Scavenger-Skirmisher | -8/Materials Bothacker-Skirmisher | -8/Garrison Bothacker-Tank | -7/Factory Bothacker-Gunner | -7/Garrison Bothacker-Tank | -7/Factory Bothacker-Tank | -7/Storage Botlord-Tank | -7/Garrison Botlord-Tank | -7/Recycling Botlord-Tank | -7/Scraptown Botlord-Tank | -5/Factory Botlord-Tank | -5/Extension Commander-Tank | -5/Cetus Botlord-Tank | -5/Archives Bothacker-Tank | -5/Hub_04(d) Bothacker-Tank | -4/Factory Botlord-Tank | -4/Garrison Botlord-Tank | -4/Factory Scavenger-Tank | -3/Research Scout | -3/Testing Resources | -11 -10 -10 -10 -9 -8 -8 -8 -8 -7 -7 -7 -7 -7 -7 -7 -5 -5 -5 -5 -5 -4 -4 -4 -3 -3 ----------- Run | Yrd Mat Min Exi Min Mat Gar Mat Gar Fac Gar Fac Sto Gar Rec Scr Fac Ext Cet Arc Hub Fac Gar Fac Res Tes Matter Collected 12597 | 260 364 50 46 40 105 534 321 530 814 891 491 233 822 342 50 260 597 374 132 599 73 1353 2556 692 68 Remotely 2169 | . . . . . . . . . . . . . . . . . . . . . . 588 1581 . . Salvage Created 13475 | 30 772 84 . 187 147 1044 334 1089 1064 433 410 315 485 443 . 323 740 78 161 1068 73 1199 2016 876 104 Parts 697 | 3 54 9 . 16 8 66 24 53 59 19 21 23 17 23 . 18 38 7 7 41 3 50 93 37 8 Haulers Intercepted 9 | . 2 . . . . . 2 . . . 2 2 . . . . . . . . . . . 1 . Recyclers Shooed 11 | 1 1 . . 1 . . . . 2 . 1 . . . . . 2 . . 1 . . 1 1 . Parts Field Recycled . | . . . . . . . . . . . . . . . . . . . . . . . . . . Retrieved Matter . | . . . . . . . . . . . . . . . . . . . . . . . . . . Parts Self-Destructed . | . . . . . . . . . . . . . . . . . . . . . . . . . . Prevented . | . . . . . . . . . . . . . . . . . . . . . . . . . . Parts Restored . | . . . . . . . . . . . . . . . . . . . . . . . . . . Kills | -11 -10 -10 -10 -9 -8 -8 -8 -8 -7 -7 -7 -7 -7 -7 -7 -5 -5 -5 -5 -5 -4 -4 -4 -3 -3 ------- Run | Yrd Mat Min Exi Min Mat Gar Mat Gar Fac Gar Fac Sto Gar Rec Scr Fac Ext Cet Arc Hub Fac Gar Fac Res Tes Combat Hostiles Destroyed 229 | . 16 7 . 6 3 25 6 24 17 13 5 6 8 4 . 2 4 1 1 10 1 17 40 10 3 Melee 11 | . . . . . . . . . 4 1 . . . . . . . . . . . . . 3 3 Guns 117 | . 14 5 . 6 1 10 3 11 5 1 5 3 6 4 . 2 4 1 1 9 1 15 3 7 . Cannons 66 | . 2 2 . . 2 9 1 3 3 7 . . . . . . . . . 1 . 1 35 . . AOE 32 | . . . . . . 6 2 9 4 4 . 3 2 . . . . . . . . . 2 . . Classes Destroyed 20 | 1 7 1 . . 1 5 . . 1 . 1 . . . . . . . . . . . 2 1 . Worker 22 | . 1 . . 1 . . . . 5 . . . . . . 1 . . . 1 . . 9 4 . Builder 7 | . 1 . . . . . . . 1 . . . . . . 1 . . . 1 . . 3 . . Tunneler 10 | 1 2 . . 3 . . 1 . 1 . . . . . . . . . . . . . 1 1 . Hauler 9 | . 2 . . . . . 2 . . . 2 2 . . . . . . . . . . . 1 . Recycler 14 | . 2 . . . . . . . 2 . 1 . . 3 . 1 2 . . 2 . . 1 . . Mechanic 4 | . . . . . . . . . . . . . . . . . . . . . . . 3 1 . Operator 3 | . . . . . . . . . 1 . . . . . . . . . 2 . . . . . . Watcher 8 | . 1 . . . . . 1 . 2 . . 2 . . . . . 1 . 1 . . . . . Swarmer 56 | . 6 6 . 6 . 4 4 7 2 . . 3 5 . . . . . . . . 3 4 3 3 Cutter 2 | . . . . . . 2 . . . . . . . . . . . . . . . . . . . Grunt 73 | . 10 . . . 1 5 2 5 6 10 1 1 . . . . . . . 5 . 5 17 5 . Brawler 6 | . . . . . . 2 . 2 . . . . . . . . . . . . . 1 1 . . Duelist 3 | . . . . . . . . . . . 1 . . . . . . . . . . 1 1 . . Sentry 36 | . . . . . 2 7 . 4 2 3 2 1 1 3 . . 4 . 1 . 1 3 1 1 . Demolisher 1 | . . . . . . . . . . . . . . . . . . . . . . . . 1 . Hunter 4 | . . . . . . 1 . . 1 . . . . . . . . . . . . 2 . . . Programmer 41 | . . . . . . 3 . 6 7 . 1 1 2 1 . 2 . . . 1 . 2 15 . . Heavy 1 | . . . . . . . . . . . . . . . . . . . . . . . 1 . . Behemoth 3 | . . . . . . 1 . . . . . . . . . . 1 . . . . 1 . . . Cetus Guard 1 | . . . . . . . . . . . . . . . . . . 1 . . . . . . . Lightning 4 | . . . . . . . . . . . . . . . . . . . . 4 . . . . . Assembled 1 | . . 1 . . . . . . . . . . . . . . . . . . . . . . . Butcher 1 | . . . . . . . . . . . . . . . . . . . . 1 . . . . . Guerrilla 1 | . . . . . . . . . . . . . . . . . . . . 1 . . . . . Best Kill Streak 11 | 1 6 3 . 3 2 6 3 11 5 6 2 8 3 2 . 2 2 2 2 7 1 3 6 3 3 Combat Bots Only 11 | . 5 3 . 3 2 6 2 11 4 6 2 6 3 2 . 1 2 1 1 5 1 3 5 3 3 Max Kills in Single Turn 4 | 1 2 1 . 1 1 2 2 3 4 2 1 4 2 1 . 1 2 1 1 2 1 2 2 2 1 Gunslinging 1 | . 1 . . . . . . 1 . . . . . . . . . . . . . 1 . . . Exploded 3 | . . . . . . 2 2 3 3 2 . 3 2 . . . . . . . . . 1 . . Melee 1 | . . . . . . . . . 1 1 . . . . . . . . . . . . . 1 1 Uniques/NPCs Destroyed . | . . . . . . . . . . . . . . . . . . . . . . . . . . Combat | -11 -10 -10 -10 -9 -8 -8 -8 -8 -7 -7 -7 -7 -7 -7 -7 -5 -5 -5 -5 -5 -4 -4 -4 -3 -3 -------- Run | Yrd Mat Min Exi Min Mat Gar Mat Gar Fac Gar Fac Sto Gar Rec Scr Fac Ext Cet Arc Hub Fac Gar Fac Res Tes Hostile Shots Fired 1920 | . 68 25 . 29 16 123 14 53 121 88 10 59 99 44 . 11 52 41 9 104 5 190 541 167 51 Missed 581 | . 14 6 . 10 2 32 5 21 33 26 5 19 27 16 . 4 9 17 7 21 2 62 163 59 21 Hits 1339 | . 54 19 . 19 14 91 9 32 88 62 5 40 72 28 . 7 43 24 2 83 3 128 378 108 30 Melee 35 | . . . . . . 5 . . . . . . . . . . . . . . . . 8 22 . Projectile 1304 | . 54 19 . 19 14 86 9 32 88 62 5 40 72 28 . 7 43 24 2 83 3 128 370 86 30 AOE 7 | . . . . . . 2 . . . . . . . 1 . . . . . . . . . 1 3 Critical Strikes 74 | . . . . . . 8 . . 3 . . . 1 . . . 2 4 . 6 . 8 30 10 2 Damage Taken 25672 | . 558 167 . 157 204 1566 86 516 1377 659 65 424 899 207 . 97 670 449 44 2739 73 2820 7716 2885 1294 Core 3762 | . 85 19 . 13 27 299 10 59 182 86 24 39 91 15 . 10 35 34 . 171 . 166 862 705 830 Absorbed by Shields 2454 | . . . . . . . . . . 55 . . 12 38 . 57 379 342 13 107 . . 905 546 . Reduced by Siege Mode 16 | . . . . . . . . . . . . . . . . . . . . . . . 16 . . Redirected to Shielding 108 | . . . . . . . . . . . . . . . . . . . . . . 108 . . . Ignored by Resistances 70 | . . . . . . . . . . . . . . . . . . . . . . . 70 . . Regen/Repaired (Parts) 565 | . . . . . . . . . 565 . . . . . . . . . . . . . . . . Core Remaining (%) 50 | 100 . . . 53 . . . 28 . . . . . . 37 . . . . 75 . . 10 . . Volleys Fired 954 | 2 70 11 . 32 12 67 15 54 58 39 25 17 47 27 . 22 50 9 7 53 3 78 219 37 . Largest 4 | 2 2 2 . 2 4 4 4 4 4 2 1 1 4 4 . 3 4 4 4 4 4 4 4 4 . Hottest 251 | 80 100 80 . 100 140 226 189 205 200 78 60 60 80 93 . 73 97 148 120 240 120 240 251 241 . Shots Fired 2078 | 4 135 22 . 64 46 200 47 166 74 64 26 17 80 67 . 40 112 24 28 172 12 199 370 109 . Gun 1383 | 4 118 11 . 64 41 117 39 148 37 4 20 15 61 56 . 28 99 20 28 149 12 173 40 99 . Cannon 490 | . 14 11 . . 5 78 6 5 7 20 . . . . . . . . . 13 . 13 308 10 . Launcher 34 | . . . . . . 5 2 6 4 8 3 2 1 . . . . . . . . . 3 . . Special 171 | . 3 . . . . . . 7 26 32 3 . 18 11 . 12 13 4 . 10 . 13 19 . . Kinetic 1115 | . 108 18 . . 29 43 13 5 30 24 20 15 61 56 . 28 77 19 28 94 12 154 248 33 . Thermal 514 | . 27 4 . 64 17 113 19 5 . . . . . . . . 22 1 . 67 . 21 86 68 . Explosive 34 | . . . . . . 5 2 6 4 8 3 2 1 . . . . . . . . . 3 . . Electromagnetic 247 | 4 . . . . . 39 13 143 14 . . . . . . . . . . 1 . 11 14 8 . Robot Hit Streak 16 | 3 13 6 . 7 12 16 14 15 12 14 13 7 5 11 . 11 12 4 4 14 4 11 15 13 . Robot Miss Streak 9 | 1 6 4 . 3 3 6 3 3 5 2 6 3 8 3 . 4 4 2 2 9 1 2 3 3 . Penetration Max 1 | . . . . . . . . . . . . . . . . 1 1 1 . 1 . 1 1 . . Secondary Targets 15 | . 3 . . 2 . . 1 1 . . . . . 1 . . . 1 . 4 . 2 . . . Max Gunslinging Chain 1 | . 1 . . 1 . . 1 1 . . . . . 1 . . . 1 . 1 . 1 . . . Autonomous 73 | . . . . . . 5 . 5 7 20 . . . . . . . . . 12 . . 24 . . Shots Hit Robots 1259 | 3 78 11 . 30 32 105 28 79 79 55 22 13 52 42 . 28 66 17 15 92 8 120 201 80 3 Core Hits 533 | 1 42 8 . 12 8 48 12 46 44 19 14 14 22 12 . 9 24 9 6 37 3 36 71 33 3 Critical Kills 6 | . . . . . . . . . . . . . . . . . . . . 1 . 4 1 . . Critical Parts Destroyed 21 | . . . . . . . . . . . . . . . . . 2 . 3 7 2 6 1 . . Critical Strikes 65 | . 1 1 . . 1 3 1 2 5 1 . . 3 . . . 4 . 3 11 3 12 13 1 . Burn 7 | . . 1 . . 1 1 1 . . . . . . . . . 2 . . 1 . . . . . Destroy 32 | . . . . . . . . . . . . . . . . . 2 . 3 10 3 12 2 . . Blast 17 | . 1 . . . . 2 . 1 2 . . . . . . . . . . . . . 11 . . Impale 9 | . . . . . . . . 1 3 1 . . 3 . . . . . . . . . . 1 . Melee Attacks 144 | . . . . . . 7 . 11 45 13 1 . 20 . . 1 . . . . . . 7 32 7 Impact . | . . . . . . . . . . . . . . . . . . . . . . . . . . Slashing . | . . . . . . . . . . . . . . . . . . . . . . . . . . Piercing 144 | . . . . . . 7 . 11 45 13 1 . 20 . . 1 . . . . . . 7 32 7 Sneak Attacks 18 | . . . . . . . . . 8 . . . . . . 1 . . . . . . 3 6 . Combat Hostiles . | . . . . . . . . . . . . . . . . . . . . . . . . . . Follow-up Attacks . | . . . . . . . . . . . . . . . . . . . . . . . . . . Damage Inflicted 38878 | 42 929 159 . 374 336 2962 572 2733 3299 2774 932 978 1317 713 . 573 1437 475 439 3160 238 3187 8874 2247 128 Guns 18800 | 42 753 89 . 374 269 987 372 951 1290 55 908 633 492 704 . 504 1437 475 439 2514 238 2929 849 1496 . Cannons 12265 | . 176 70 . . 67 1188 86 537 503 1432 . . . . . . . . . 643 . 258 7267 38 . Explosions 4389 | . . . . . . 787 114 799 587 1058 24 345 148 . . . . . . . . . 527 . . Melee 3299 | . . . . . . . . 446 841 229 . . 677 . . 69 . . . . . . 196 713 128 Ramming 125 | . . . . . . . . . 78 . . . . 9 . . . . . 3 . . 35 . . Kinetic 21986 | . 772 110 . . 173 596 118 537 1644 1487 908 633 492 704 . 504 1270 450 439 1946 238 2650 5893 422 . Thermal 7101 | . 157 49 . 374 163 1326 211 180 . . . . . . . . 167 25 . 1211 . 279 1885 1074 . Explosive 4040 | . . . . . . 639 75 637 587 1058 24 345 148 . . . . . . . . . 527 . . Electromagnetic 2327 | 42 . . . . . 401 168 933 149 . . . . . . . . . . . . 258 338 38 . Impact . | . . . . . . . . . . . . . . . . . . . . . . . . . . Slashing . | . . . . . . . . . . . . . . . . . . . . . . . . . . Piercing 3299 | . . . . . . . . 446 841 229 . . 677 . . 69 . . . . . . 196 713 128 Highest Corruption 41 | . . . . . . 6 11 11 3 3 4 7 7 7 . . 1 1 1 22 . 4 41 9 9 Average Corruption 8 | . . . . . . 5 6 11 2 2 3 4 7 7 . . 1 1 1 5 . 3 19 5 4 Corruption Purged 13 | . . . . . . . . . 3 . . . . . . . . . 1 . . . . . 9 Corruption Blocked . | . . . . . . . . . . . . . . . . . . . . . . . . . . Effects 530 | . . . . . . 46 28 86 17 18 14 10 41 27 . . 7 6 1 5 . 46 167 4 7 Message Errors 116 | . . . . . . 9 5 22 4 5 2 1 10 8 . . 2 1 1 . . 10 34 2 . Matter Fused 121 | . . . . . . 17 11 15 3 7 4 3 8 4 . . 3 1 . 1 . 16 23 2 3 Heat Flow Errors 72 | . . . . . . 1 3 12 3 1 3 2 6 3 . . . 1 . 2 . 6 27 . 2 Energy Discharges 63 | . . . . . . 2 2 15 3 . 1 4 7 4 . . . . . . . 5 19 . 1 Parts Rejected 5 | . . . . . . . . . . 1 . . . . . . . . . . . . 4 . . Parts Fused 6 | . . . . . . 1 . . . . 1 . . . . . . 1 . . . . 3 . . Data Loss (minor) 53 | . . . . . . 4 6 9 2 1 . . 2 3 . . . 2 . 2 . 2 19 . 1 Data Loss (major) 23 | . . . . . . 2 . 6 . 1 1 . 3 . . . 1 . . . . 2 7 . . Misfires 28 | . . . . . . 2 1 4 1 1 1 . 2 4 . . . . . . . 3 9 . . Alerts 14 | . . . . . . 4 . . 1 1 1 . 2 1 . . . . . . . 1 3 . . Misdirections 2 | . . . . . . . . . . . . . . . . . . . . . . . 2 . . Weapon Failures 27 | . . . . . . 4 . 3 . . . . 1 . . . 1 . . . . 1 17 . . Overload Shots 12 | . . . . . . . . . . . . . . . . . 9 . . 1 . 1 . 1 . Effects 1 | . . . . . . . . . . . . . . . . . 1 . . . . . . . . Heat Surge 1 | . . . . . . . . . . . . . . . . . 1 . . . . . . . . Overflow Damage 1973 | . 8 . . . . 53 . 154 392 330 . . 27 . . . . . . 12 . 28 874 95 . Projectiles 1440 | . 8 . . . . . . 129 226 264 . . . . . . . . . 12 . 28 773 . . Explosions 198 | . . . . . . 53 . 25 . 66 . . . . . . . . . . . . 54 . . Melee 335 | . . . . . . . . . 166 . . . 27 . . . . . . . . . 47 95 . Knockbacks 47 | . 2 1 . . 2 . . 1 2 2 . . . . . . . . . 1 . . 36 . . Impact . | . . . . . . . . . . . . . . . . . . . . . . . . . . Kinetic 45 | . 2 1 . . 2 . . 1 2 2 . . . . . . . . . 1 . . 34 . . Secondary 2 | . . . . . . . . . . . . . . . . . . . . . . . 2 . . Self-Inflicted Damage 627 | . . . . . . . . 71 43 70 . . . 4 . . . . . 1 . . 438 . . Shots 12 | . . . . . . . . 2 1 2 . . . . . . . . . . . . 7 . . Rammed 13 | . . . . . . . . . 7 . . . . 1 . . . . . 1 . . 4 . . Targets Rammed 13 | . . . . . . . . . 7 . . . . 1 . . . . . 1 . . 4 . . Kicked . | . . . . . . . . . . . . . . . . . . . . . . . . . . Crushed . | . . . . . . . . . . . . . . . . . . . . . . . . . . Highest Temperature 1642 | 36 84 48 . 292 90 502 181 251 227 250 263 213 271 232 . 132 341 206 . 306 . 376 444 444 1642 Average Temperature 98 | 20 13 14 . 91 38 135 55 70 59 57 80 82 83 74 . 49 87 61 . 101 . 92 121 123 1028 Received Heat Transfer 3876 | . 186 . . . 72 336 9 99 180 196 27 60 102 57 . 26 182 58 13 310 27 786 1000 93 57 Effects 26 | . . . . . . 4 . . . . . . . . . . 1 . . . . . 8 5 8 Shutdowns 4 | . . . . . . 1 . . . . . . . . . . . . . . . . 1 2 . Energy Bleed 6 | . . . . . . . . . . . . . . . . . 1 . . . . . 4 . 1 Interference 3 | . . . . . . . . . . . . . . . . . . . . . . . 3 . . Short Circuit 2 | . . . . . . . . . . . . . . . . . . . . . . . . . 2 Damage (minor) 4 | . . . . . . . . . . . . . . . . . . . . . . . . 1 3 Damage (major) 5 | . . . . . . 3 . . . . . . . . . . . . . . . . . 2 . Damage (core) 2 | . . . . . . . . . . . . . . . . . . . . . . . . . 2 Siege Activations 1 | . . . . . . . . . . . . . . . . . . . . . . . 1 . . Total Turns 25 | . . . . . . . . . . . . . . . . . . . . . . . 25 . . Longest Duration 25 | . . . . . . . . . . . . . . . . . . . . . . . 25 . . Martial Activations . | . . . . . . . . . . . . . . . . . . . . . . . . . . Shielding Activations . | . . . . . . . . . . . . . . . . . . . . . . . . . . Robots Disrupted . | . . . . . . . . . . . . . . . . . . . . . . . . . . Combat Hostiles . | . . . . . . . . . . . . . . . . . . . . . . . . . . Robots Corrupted 4 | . . . . . . . . 2 1 . . . . . . . . . . . . 1 . . . Combat Hostiles 3 | . . . . . . . . 1 1 . . . . . . . . . . . . 1 . . . Parts Fried 9 | . . . . . . . 1 2 1 . . . . . . . 2 . . . . 2 1 . . Impact Corruptions . | . . . . . . . . . . . . . . . . . . . . . . . . . . Robots Melted . | . . . . . . . . . . . . . . . . . . . . . . . . . . Combat Hostiles . | . . . . . . . . . . . . . . . . . . . . . . . . . . Parts Melted 17 | . . . . 1 3 3 . . 2 . . . . . . . 2 . . 1 . 1 . 4 . Heat Transferred 10899 | . 350 222 . 1110 555 2444 531 237 . . . . . . . . 550 37 . 2088 . 370 592 1813 . Parts Sabotaged 1 | . . . . . . . . . . . . . . . . . . . . . . . 1 . . Parts Stolen . | . . . . . . . . . . . . . . . . . . . . . . . . . . Parts Stripped . | . . . . . . . . . . . . . . . . . . . . . . . . . . Power Chain Reactions 6 | . . . . . . 1 1 4 . . . . . . . . . . . . . . . . . Alert | -11 -10 -10 -10 -9 -8 -8 -8 -8 -7 -7 -7 -7 -7 -7 -7 -5 -5 -5 -5 -5 -4 -4 -4 -3 -3 ------- Run | Yrd Mat Min Exi Min Mat Gar Mat Gar Fac Gar Fac Sto Gar Rec Scr Fac Ext Cet Arc Hub Fac Gar Fac Res Tes Maximum Alert Level 4 | . . . . . . 3 2 4 2 4 3 2 3 2 . . 3 2 1 4 3 4 3 2 . Low Security (%) 19 | 100 100 100 . 100 100 22 8 7 . . . . 25 . . 100 38 . 46 26 . . 2 . 100 Level 1 20 | . . . . . . 16 56 9 33 6 . 92 14 80 . . 4 45 53 8 . . 25 39 . Level 2 33 | . . . . . . 22 34 36 66 29 38 7 19 19 . . 29 54 . 28 49 21 51 60 . Level 3 20 | . . . . . . 38 . 34 . 42 61 . 40 . . . 27 . . 16 50 41 21 . . Level 4 6 | . . . . . . . . 13 . 21 . . . . . . . . . 20 . 37 . . . Level 5 . | . . . . . . . . . . . . . . . . . . . . . . . . . . High Security . | . . . . . . . . . . . . . . . . . . . . . . . . . . Max Security . | . . . . . . . . . . . . . . . . . . . . . . . . . . Peak Influence 1495 | 5 124 96 . 82 40 892 533 1308 686 1396 845 411 964 456 . 53 871 536 318 1472 733 1495 976 532 179 Initial 784 | . . 36 . . 11 18 434 110 686 375 732 304 129 433 . . 17 458 96 38 713 441 784 490 135 Average 509 | . 47 42 . 17 13 510 338 694 452 856 729 269 529 356 . 7 434 389 212 634 691 966 534 416 116 Influence Increases 15984 | 5 511 140 . 190 109 964 278 1298 1101 1161 337 261 955 269 . 92 1345 332 252 2419 78 1284 1987 386 230 Destroy 0b10 Robot/C 6620 | . 320 120 . 120 60 500 120 480 560 440 120 120 380 80 . 40 540 140 80 860 20 400 860 200 60 Destroy 0b10 Robot/NC 480 | 5 45 . . 20 . . 20 15 65 5 20 20 15 15 . 15 25 10 10 55 . . 85 35 . Destroy Leader 1014 | . 66 20 . 20 30 10 36 40 144 10 46 38 40 . . 10 64 . . 188 10 30 170 32 10 Allied During Kill 2095 | . . . . . . . . 5 71 51 52 9 61 6 . 8 567 150 90 955 . 33 37 . . Trap Triggered on 0b10 10 | . . . . . . . . . 10 . . . . . . . . . . . . . . . . Successful Hack 448 | . 17 . . . 4 16 32 14 70 14 . 14 28 14 . . 22 16 . 22 40 14 . 43 68 Select Force Hacks 310 | . 60 . . . . . . . . . . . . 150 . . . . . 50 . . 50 . . Disable Machine 915 | . . . . . . 15 30 . 45 45 75 30 . . . 15 105 . 60 75 . 30 345 15 30 Anti-Garrison Action 2300 | . . . . . . 300 . 600 . 400 . . 300 . . . . . . . . 700 . . . Destroy Structure 1117 | . 3 . . . . 78 25 99 31 46 24 30 56 4 . 4 22 16 12 184 8 77 380 16 2 Partial Spotted 45 | . . . . . 15 . . . 30 . . . . . . . . . . . . . . . . Lose Combat Pursuer 630 | . . . . 30 . 45 15 45 75 150 . . 75 . . . . . . 30 . . 60 45 60 Influence Decreases 15899 | 5 416 235 . 160 110 101 1000 160 1872 302 1064 731 190 965 268 55 563 911 382 1073 903 420 2547 1079 387 Entered New Map 6082 | . . 59 . . 19 11 458 60 622 162 664 365 70 531 268 . 20 361 144 72 743 190 711 445 107 Time Decay 5952 | 5 396 166 . 150 81 . 392 . 715 . 380 206 . 374 . 55 483 310 238 446 160 . 751 464 180 Lost Part 1240 | . 20 10 . 10 10 90 . 40 80 20 . . 20 . . . . 20 . 80 . 130 450 170 90 Lost Ally 1250 | . . . . . . . . 60 180 120 20 10 100 60 . . 60 220 . 200 . 100 110 . 10 Purge Threat 1375 | . . . . . . . 150 . 275 . . 150 . . . . . . . 275 . . 525 . . Squads Dispatched 82 | . 3 . . . 1 . 2 . 18 . 2 3 . . . 3 3 . . 13 1 . 22 10 1 Investigation 18 | . 2 . . . . . 1 . 2 . . . . . . . 3 . . 4 . . 2 4 . Extermination 21 | . . . . . . . . . 6 . 1 1 . . . 1 . . . 2 . . 8 1 1 Reinforcement 30 | . 1 . . . . . . . 8 . . 1 . . . 2 . . . 7 . . 6 5 . Assault 9 | . . . . . . . . . 1 . 1 . . . . . . . . . 1 . 6 . . Garrison 4 | . . . . . 1 . 1 . 1 . . 1 . . . . . . . . . . . . . Intercept . | . . . . . . . . . . . . . . . . . . . . . . . . . . Searches Triggered . | . . . . . . . . . . . . . . . . . . . . . . . . . . Construction Impeded 7 | . . . . . . . . . 3 . . . . . . . . . . 1 . . 2 1 . Haulers Reinforced 9 | . . . . . . . . . 1 . . 1 . . . 2 . . . 2 . . . 3 . Active Scanning Responses . | . . . . . . . . . . . . . . . . . . . . . . . . . . Cargo Convoy Interrupts 1 | . . . . . . . . . 1 . . . . . . . . . . . . . . . . Alert ID Control Effect 36 | . . . . . . . . . . . 1 3 6 3 . 4 1 1 . 5 . 5 7 . . Stealth | -11 -10 -10 -10 -9 -8 -8 -8 -8 -7 -7 -7 -7 -7 -7 -7 -5 -5 -5 -5 -5 -4 -4 -4 -3 -3 --------- Run | Yrd Mat Min Exi Min Mat Gar Mat Gar Fac Gar Fac Sto Gar Rec Scr Fac Ext Cet Arc Hub Fac Gar Fac Res Tes Distress Signals 25 | . . . . . 2 . 2 . 2 . . 1 . . . 1 1 2 . 2 . . 4 7 1 Communications Jammed . | . . . . . . . . . . . . . . . . . . . . . . . . . . Distress Signals . | . . . . . . . . . . . . . . . . . . . . . . . . . . Times Spotted 520 | . 32 8 . 8 6 22 9 24 50 34 10 6 33 7 . 12 38 10 7 46 2 29 99 16 12 Peak Tracking Total 10 | . 6 3 . 3 2 4 3 8 6 8 2 4 7 3 . 3 8 5 2 8 1 4 10 3 7 Tactical Retreats 24 | . . 1 . 1 . 2 1 1 2 4 . . 3 . . . . . . 2 . . 3 1 3 Traps | -11 -10 -10 -10 -9 -8 -8 -8 -8 -7 -7 -7 -7 -7 -7 -7 -5 -5 -5 -5 -5 -4 -4 -4 -3 -3 ------- Run | Yrd Mat Min Exi Min Mat Gar Mat Gar Fac Gar Fac Sto Gar Rec Scr Fac Ext Cet Arc Hub Fac Gar Fac Res Tes Traps Triggered 57 | . . . . . . 7 3 7 3 8 1 . 9 . . . 6 . . 1 . 9 2 . 1 Indirectly . | . . . . . . . . . . . . . . . . . . . . . . . . . . Trap Hack Attempts . | . . . . . . . . . . . . . . . . . . . . . . . . . . Triggered . | . . . . . . . . . . . . . . . . . . . . . . . . . . Disarmed 4 | . . . . . . . . . . . . . . . . . . . . 4 . . . . . Reprogrammed . | . . . . . . . . . . . . . . . . . . . . . . . . . . Reused . | . . . . . . . . . . . . . . . . . . . . . . . . . . Traps Extracted . | . . . . . . . . . . . . . . . . . . . . . . . . . . Installed . | . . . . . . . . . . . . . . . . . . . . . . . . . . Triggered 1 | . . . . . . . . . 1 . . . . . . . . . . . . . . . . Machines | -11 -10 -10 -10 -9 -8 -8 -8 -8 -7 -7 -7 -7 -7 -7 -7 -5 -5 -5 -5 -5 -4 -4 -4 -3 -3 ---------- Run | Yrd Mat Min Exi Min Mat Gar Mat Gar Fac Gar Fac Sto Gar Rec Scr Fac Ext Cet Arc Hub Fac Gar Fac Res Tes Machines Disabled 83 | . . . . . . 6 2 4 3 8 5 2 4 . . 1 7 . 4 5 . 6 23 1 2 Max in Single Turn 6 | . . . . . . 1 1 1 1 1 2 1 1 . . . 1 . 1 1 . 1 6 1 1 Garrison Access 4 | . . . . . . . . . 1 . 2 . . . . . . . . 1 . . . . . Garrison Relay 19 | . . . . . . 3 . 3 . 5 . . 4 . . . . . . . . 4 . . . Phase Generator 1 | . . . . . . 1 . . . . . . . . . . . . . . . . . . . Network Hub 1 | . . . . . . . . . . . . . . . . . . . . 1 . . . . . Machines Repaired . | . . . . . . . . . . . . . . . . . . . . . . . . . . Machines Dismantled . | . . . . . . . . . . . . . . . . . . . . . . . . . . Machines Sabotaged 1 | . . . . . . . . . . . . . . . . . . . . 1 . . . . . Overloaded Fab Kills 2 | . . . . . . . . . . . . . . . . . . . . . . . 2 . . Hacking | -11 -10 -10 -10 -9 -8 -8 -8 -8 -7 -7 -7 -7 -7 -7 -7 -5 -5 -5 -5 -5 -4 -4 -4 -3 -3 --------- Run | Yrd Mat Min Exi Min Mat Gar Mat Gar Fac Gar Fac Sto Gar Rec Scr Fac Ext Cet Arc Hub Fac Gar Fac Res Tes Machines Accessed 112 | . 8 . 2 . 1 2 8 4 11 2 5 8 2 10 . 1 12 3 . 6 3 4 10 2 8 Terminals 77 | . 6 . . . . 2 6 4 4 2 3 6 2 5 . 1 12 3 . 5 2 4 6 . 4 Fabricators 5 | . . . . . . . . . 1 . . . . . . . . . . . . . 3 . 1 Repair Stations 5 | . . . . . . . . . 2 . . . . . . . . . . . . . . 2 1 Recycling Units 9 | . 2 . . . . . . . 1 . . 1 . 5 . . . . . . . . . . . Scanalyzers 5 | . . . . . . . 1 . 1 . . . . . . . . . . . . . 1 . 2 Garrison Access 9 | . . . . . 1 . 1 . 2 . 2 1 . . . . . . . 1 1 . . . . Total Hacks 278 | . 28 . 2 . 1 3 25 8 24 5 9 14 3 17 . 2 30 4 . 13 11 13 28 4 34 Successful 113 | . 13 . 2 . 1 1 13 1 10 2 4 8 2 6 . 1 9 3 . 11 6 2 7 2 9 Failed 165 | . 15 . . . . 2 12 7 14 3 5 6 1 11 . 1 21 1 . 2 5 11 21 2 25 Catastrophic 43 | . 5 . . . . . 2 3 1 1 3 . . 4 . . 4 . . . . 6 10 . 4 Database Lockouts . | . . . . . . . . . . . . . . . . . . . . . . . . . . Manual 124 | . 21 . 1 . . . 15 1 5 . 5 8 . 15 . . 9 1 . 11 8 . 17 . 7 Terminals 206 | . 23 . . . . 3 20 8 9 5 5 12 3 11 . 2 30 4 . 11 10 13 18 . 19 Fabricators 13 | . . . . . . . . . 3 . . . . . . . . . . . . . 8 . 2 Repair Stations 12 | . . . . . . . . . 5 . . . . . . . . . . . . . . 4 3 Recycling Units 15 | . 5 . . . . . . . 3 . . 1 . 6 . . . . . . . . . . . Scanalyzers 18 | . . . . . . . 4 . 2 . . . . . . . . . . . . . 2 . 10 Garrison Access 12 | . . . . . 1 . 1 . 2 . 4 1 . . . . . . . 2 1 . . . . Terminal Hacks 42 | . 5 . 2 . . 1 3 1 2 2 . 4 2 1 . 1 6 3 . 3 1 2 2 . 1 Record 3 | . . . 1 . . . . . . . . . . . . . . 2 . . . . . . . Robot Analysis 2 | . 2 . . . . . . . . . . . . . . . . . . . . . . . . Prototype ID Bank 2 | . . . . . . . . . . . . . . 1 . . 1 . . . . . . . . Open Door 7 | . . . . . . . . . . . . 2 . . . 1 3 1 . . . . . . . Branch Access Points 2 | . . . . . . . . . . . . . . . . . . . . . 1 . . . 1 Emergency Access Points 4 | . . . . . . . . 1 . 1 . . 1 . . . . . . . . 1 . . . Unreport Threat 3 | . . . . . . . 1 . . . . 1 . . . . . . . . . . 1 . . Locate Traps 9 | . 3 . . . . . 2 . . . . . . . . . 2 . . 1 . . 1 . . Disarm Traps 1 | . . . . . . . . . . . . . . . . . . . . 1 . . . . . Recall Reinforcements 1 | . . . . . . . . . . . . 1 . . . . . . . . . . . . . Hauler Manifests 1 | . . . . . . . . . 1 . . . . . . . . . . . . . . . . Registered Components 2 | . . . . . . . . . 1 . . . . . . . . . . 1 . . . . . Garrison Registry 2 | . . . . . . . . . . 1 . . 1 . . . . . . . . . . . . Patrol Navigation 1 | . . . . . . . . . . . . . . . . . . . . . . 1 . . . Security Stations 1 | . . . . . . 1 . . . . . . . . . . . . . . . . . . . Proto ID Catalog 1 | . . . 1 . . . . . . . . . . . . . . . . . . . . . . Fabricator Hacks 3 | . . . . . . . . . . . . . . . . . . . . . . . 2 . 1 Network Status 1 | . . . . . . . . . . . . . . . . . . . . . . . 1 . . Build 2 | . . . . . . . . . . . . . . . . . . . . . . . 1 . 1 Repair Station Hacks 5 | . . . . . . . . . 2 . . . . . . . . . . . . . . 2 1 Scan Component 1 | . . . . . . . . . 1 . . . . . . . . . . . . . . . . Repair 1 | . . . . . . . . . 1 . . . . . . . . . . . . . . . . Refit 3 | . . . . . . . . . . . . . . . . . . . . . . . . 2 1 Recycling Unit Hacks . | . . . . . . . . . . . . . . . . . . . . . . . . . . Scanalyzer 7 | . . . . . . . 4 . 1 . . . . . . . . . . . . . . . 2 Insert Component 1 | . . . . . . . . . . . . . . . . . . . . . . . . . 1 Analyze 1 | . . . . . . . . . . . . . . . . . . . . . . . . . 1 Retrieve Study 5 | . . . . . . . 4 . 1 . . . . . . . . . . . . . . . . Garrison Access Hacks 12 | . . . . . 1 . 1 . 2 . 4 1 . . . . . . . 2 1 . . . . Unlock Access 6 | . . . . . 1 . 1 . 1 . . 1 . . . . . . . 1 1 . . . . Seal Access 4 | . . . . . . . . . 1 . 2 . . . . . . . . 1 . . . . . Coupler Status 2 | . . . . . . . . . . . 2 . . . . . . . . . . . . . . Unauthorized Hacks 44 | . 8 . . . . . 5 . 3 . . 3 . 5 . . 3 . . 6 4 . 3 . 4 Terminals 33 | . 6 . . . . . 5 . 2 . . 3 . . . . 3 . . 6 4 . . . 4 Track 2 | . . . . . . . . . . . . . . . . . . . . . . . . . 2 Assimilate 1 | . . . . . . . . . . . . . . . . . 1 . . . . . . . . Botnet 10 | . 1 . . . . . 1 . 2 . . . . . . . 1 . . 1 2 . . . 2 Operators 2 | . . . . . . . . . . . . . . . . . . . . 1 1 . . . . Skim 15 | . 5 . . . . . 4 . . . . 3 . . . . 1 . . 1 1 . . . . Sabotage 3 | . . . . . . . . . . . . . . . . . . . . 3 . . . . . Fabricators 3 | . . . . . . . . . . . . . . . . . . . . . . . 3 . . Prioritize 1 | . . . . . . . . . . . . . . . . . . . . . . . 1 . . Haulers 1 | . . . . . . . . . . . . . . . . . . . . . . . 1 . . Overload 1 | . . . . . . . . . . . . . . . . . . . . . . . 1 . . Repair Stations 1 | . . . . . . . . . 1 . . . . . . . . . . . . . . . . Patch 1 | . . . . . . . . . 1 . . . . . . . . . . . . . . . . Recycling Units 7 | . 2 . . . . . . . . . . . . 5 . . . . . . . . . . . Tunnel 7 | . 2 . . . . . . . . . . . . 5 . . . . . . . . . . . Scanalyzers . | . . . . . . . . . . . . . . . . . . . . . . . . . . Garrison Access . | . . . . . . . . . . . . . . . . . . . . . . . . . . Data Cores Recovered 1 | . . . . . . . . . . . . . . . . . 1 . . . . . . . . Used . | . . . . . . . . . . . . . . . . . . . . . . . . . . Hacking Detections 76 | . 7 . . . . 2 7 4 7 2 3 6 1 4 . 1 10 1 . 3 2 3 7 . 6 Full Trace Events 6 | . . . . . . . . 1 . 1 . . . 1 . . 3 . . . . . . . . Feedback Events 2 | . . . . . . . . . . 1 . . . . . . 1 . . . . . . . . Corruption 2 | . . . . . . . . . . 1 . . . . . . 1 . . . . . . . . Feedback Blocked . | . . . . . . . . . . . . . . . . . . . . . . . . . . Robot Schematics Acquired . | . . . . . . . . . . . . . . . . . . . . . . . . . . Robots Built 1 | . . . . . . . . . . . . . . . . . . . . . . . . . 1 Authchips . | . . . . . . . . . . . . . . . . . . . . . . . . . . Time 62 | . . . . . . . . . . . . . . . . . . . . . . . . . 62 Total Robot Build Rating 7 | . . . . . . . . . . . . . . . . . . . . . . . . . 7 Part Schematics Acquired . | . . . . . . . . . . . . . . . . . . . . . . . . . . Parts Built 1 | . . . . . . . . . . . . . . . . . . . . . . . 1 . . Authchips . | . . . . . . . . . . . . . . . . . . . . . . . . . . Time 139 | . . . . . . . . . . . . . . . . . . . . . . . 139 . . Total Part Build Rating 9 | . . . . . . . . . . . . . . . . . . . . . . . 9 . . Part Studies Acquired 5 | . . . . . . . 4 . 1 . . . . . . . . . . . . . . . . Parts Repaired 1 | . . . . . . . . . 1 . . . . . . . . . . . . . . . . Time 13 | . . . . . . . . . 13 . . . . . . . . . . . . . . . . Parts Recycled . | . . . . . . . . . . . . . . . . . . . . . . . . . . Recycled Matter . | . . . . . . . . . . . . . . . . . . . . . . . . . . Retrieved Matter . | . . . . . . . . . . . . . . . . . . . . . . . . . . Retrieved Components . | . . . . . . . . . . . . . . . . . . . . . . . . . . Parts Scanalyzed 1 | . . . . . . . . . . . . . . . . . . . . . . . . . 1 Part Schematics Acquired . | . . . . . . . . . . . . . . . . . . . . . . . . . . Parts Damaged . | . . . . . . . . . . . . . . . . . . . . . . . . . . Bothacking | -11 -10 -10 -10 -9 -8 -8 -8 -8 -7 -7 -7 -7 -7 -7 -7 -5 -5 -5 -5 -5 -4 -4 -4 -3 -3 ------------ Run | Yrd Mat Min Exi Min Mat Gar Mat Gar Fac Gar Fac Sto Gar Rec Scr Fac Ext Cet Arc Hub Fac Gar Fac Res Tes Used RIF Installer 5 | . . . . . . 1 . 1 . 1 . . 1 . . . . . . . . 1 . . . Command Fork 1 | . . . . . . . . . . . . . 1 . . . . . . . . . . . . Robot Detection 1 | . . . . . . . . 1 . . . . . . . . . . . . . . . . . Watcher Feeds 1 | . . . . . . . . . . . . . . . . . . . . . . 1 . . . Alert ID Control 1 | . . . . . . . . . . 1 . . . . . . . . . . . . . . . Robots Hacked 89 | . . . . . . . . 4 15 13 2 . 10 3 . 8 7 . . 6 . 9 12 . . Non-combat 20 | . . . . . . . . . 3 . 1 . . 1 . 5 1 . . 3 . . 6 . . Combat 69 | . . . . . . . . 4 12 13 1 . 10 2 . 3 6 . . 3 . 9 6 . . Robot Hacks Applied 103 | . . . . . . . . 4 18 14 2 . 11 5 . 9 7 . . 9 . 9 15 . . parse_system 6 | . . . . . . . . . 1 2 . . . 2 . . 1 . . . . . . . . generate_echo 1 | . . . . . . . . . . . . . . . . . . . . 1 . . . . . ignore_repairs 1 | . . . . . . . . . . . . . . . . . 1 . . . . . . . . find_dsf 1 | . . . . . . . . . . . . . . . . 1 . . . . . . . . . drop_inventory 4 | . . . . . . . . . . . . . . . . 2 . . . . . . 2 . . ignore_parts 4 | . . . . . . . . . 2 . . . . . . 1 . . . 1 . . . . . check_alert 1 | . . . . . . . . . . . . . . . . . . . . . . . 1 . . purge_threat 7 | . . . . . . . . . 2 . . . . . . . . . . 2 . . 3 . . reprogram_traps 1 | . . . . . . . . . 1 . . . . . . . . . . . . . . . . map_route 4 | . . . . . . . . . 1 . . . . . . 1 . . . 1 . . 1 . . mark_security 2 | . . . . . . . . . . . . . . . . 1 . . . . . . 1 . . spike_heat 1 | . . . . . . . . . . . . . 1 . . . . . . . . . . . . overload_power 4 | . . . . . . . . . . . . . 1 1 . . . . . . . 1 1 . . amplify_resonance 10 | . . . . . . . . . . 2 . . 6 . . 1 . . . . . . 1 . . reboot_system 3 | . . . . . . . . . . 1 . . . . . . 1 . . . . 1 . . . go_dormant 2 | . . . . . . . . . . 1 . . . . . . . . . . . . 1 . . overwrite_iff 11 | . . . . . . . . . 4 3 . . 1 1 . . . . . 1 . 1 . . . streamctrl_high 2 | . . . . . . . . . . . . . . . . . 2 . . . . . . . . formatsys_low 3 | . . . . . . . . . . . 1 . . . . . . . . 1 . . 1 . . formatsys_high 35 | . . . . . . . . 4 7 5 1 . 2 1 . 2 2 . . 2 . 6 3 . . Relay Couplers Released 93 | . . . . . . 13 . 15 4 23 1 3 19 . . . . . . 2 . 13 . . . Machine Destruction 86 | . . . . . . 13 . 15 . 23 1 . 19 . . . . . . 2 . 13 . . . Programmers 7 | . . . . . . . . . 4 . . 3 . . . . . . . . . . . . . Attached 46 | . . . . . . . . 4 8 7 . . 6 1 1 1 3 . . 3 . 6 6 . . Fabnet Peak Effective % . | . . . . . . . . . . . . . . . . . . . . . . . . . . Robots Rewired 18 | . . . . . . . . . . 3 . . . 3 . . 12 . . . . . . . . Allies Hacked 1 | . . . . . . . . . . . . . . . . . . . . . . . 1 . . Hacks Repelled . | . . . . . . . . . . . . . . . . . . . . . . . . . . Allies | -11 -10 -10 -10 -9 -8 -8 -8 -8 -7 -7 -7 -7 -7 -7 -7 -5 -5 -5 -5 -5 -4 -4 -4 -3 -3 -------- Run | Yrd Mat Min Exi Min Mat Gar Mat Gar Fac Gar Fac Sto Gar Rec Scr Fac Ext Cet Arc Hub Fac Gar Fac Res Tes Total Allies 96 | . . . . . . . . 5 11 13 2 . 5 5 . 3 28 5 . 4 . 8 6 . 1 Largest Group 28 | . . . . . . . . 2 4 5 5 2 4 5 2 5 26 28 18 17 . 4 3 . 1 Highest-Rated Group 1243 | . . . . . . . . 40 152 204 204 55 210 139 71 176 860 1243 956 803 . 201 135 . 93 Highest-Rated Ally 159 | . . . . . . . . 25 90 80 80 32 95 40 40 47 159 152 152 96 . 58 56 . 93 Total Orders 21 | . . . . . . . . . 2 3 . . . . 4 1 . 2 . 1 2 2 4 . . STAY 12 | . . . . . . . . . 1 2 . . . . 3 1 . 1 . 1 . 1 2 . . FOLLOW 7 | . . . . . . . . . 1 1 . . . . 1 . . 1 . . . 1 2 . . EXPLORE 1 | . . . . . . . . . . . . . . . . . . . . . 1 . . . . RETURN 1 | . . . . . . . . . . . . . . . . . . . . . 1 . . . . Ally Attacks 743 | . . . . . . . . 1 67 56 17 8 43 18 . 27 139 53 33 186 . 54 41 . . Total Damage 22854 | . . . . . . . . 21 1568 1320 479 288 1238 539 . 602 3981 1729 833 6618 . 1572 2012 . 54 Kills 160 | . . . . . . . . . 12 10 5 3 17 3 . 4 27 8 3 50 . 8 10 . . Allies Corrupted 3 | . . . . . . . . . 1 . . . . . . . . . . 1 . 1 . . . Allies Melted 1 | . . . . . . . . . . . . . . . . . 1 . . . . . . . . Intel | -11 -10 -10 -10 -9 -8 -8 -8 -8 -7 -7 -7 -7 -7 -7 -7 -5 -5 -5 -5 -5 -4 -4 -4 -3 -3 ------- Run | Yrd Mat Min Exi Min Mat Gar Mat Gar Fac Gar Fac Sto Gar Rec Scr Fac Ext Cet Arc Hub Fac Gar Fac Res Tes Active Infowar (turns) 11183 | . 820 426 577 836 230 1578 921 304 957 159 . . . 2 . . . . . . . . 2848 1168 357 Optics 3879 | . . . . . . . . . . . . . . . . . . . . . . . 2430 1168 281 Sensors 311 | . . . . . . . . . . . . . . 2 . . . . . . . . 183 . 126 Seismic 7361 | . 820 426 577 836 230 1578 921 304 957 159 . . . . . . . . . . . . . 553 . T.N.C. 170 | . . . . . . . . . . . . . . . . . . . . . . . . 170 . Machine Analysis 1920 | . . . . . . . . . . . . . . . . . . . . . . . 395 1168 357 Cloaking 586 | . . . . . . . . . . . . . . . . . . . . . . . 418 168 . Jamming 511 | . . . . . . . . . . . . . . . . . . . . . . . . 511 . Robot Analysis Total 2 | . 2 . . . . . . . . . . . . . . . . . . . . . . . . Derelict Logs Recovered 2 | . . 1 . 1 . . . . . . . . . . . . . . . . . . . . . Drone Launches 2 | . . . . . . . . . . . . . . . . . . . . . 2 . . . . Drone Recoveries 2 | . . . . . . . . . . . . . . . . . . . . . 2 . . . . Exploration | -11 -10 -10 -10 -9 -8 -8 -8 -8 -7 -7 -7 -7 -7 -7 -7 -5 -5 -5 -5 -5 -4 -4 -4 -3 -3 ------------- Run | Yrd Mat Min Exi Min Mat Gar Mat Gar Fac Gar Fac Sto Gar Rec Scr Fac Ext Cet Arc Hub Fac Gar Fac Res Tes Turns Passed 29771 | 71 1078 426 577 836 230 1578 921 2283 3282 1538 881 423 1206 874 1172 421 1274 681 515 1107 328 2526 4014 1168 361 Spaces Moved 14575 | 52 604 274 434 548 119 702 421 946 1788 804 567 246 641 531 759 211 503 273 104 501 130 774 1450 833 360 Core 317 | 1 . . . . . . . . . . . . . . . . . . . . . . 40 183 93 Treads 1418 | 1 . . . . . . . . . . . . . . . . . 3 . . 1 527 886 . . Legs 563 | . . . . . . . . . . . . . . . . . . . . . . . . 563 . Wheels 11923 | 50 604 274 434 548 119 702 421 946 1788 804 567 246 641 531 759 211 503 270 104 501 129 247 524 . . Hover 336 | . . . . . . . . . . . . . . . . . . . . . . . . 87 249 Flight 18 | . . . . . . . . . . . . . . . . . . . . . . . . . 18 Fastest Speed 40 | 50 100 130 130 105 135 135 145 145 115 145 145 145 145 145 145 160 160 175 175 175 205 220 50 50 40 Average Speed 163 | 100 118 141 130 132 135 170 200 205 147 152 145 156 145 145 145 162 174 175 175 177 226 277 214 98 71 Slowest Speed 2200 | 160 145 145 130 135 135 245 260 220 220 175 145 160 160 145 145 175 175 240 175 265 465 305 2200 190 200 Overloaded Moves . | . . . . . . . . . . . . . . . . . . . . . . . . . . Propulsion Burnouts . | . . . . . . . . . . . . . . . . . . . . . . . . . . Robots Hopped 3 | . . . . . . . . . . . . . . . . . . . . . . . . . 3 Potential Cave-ins 2 | . . . . . . . . . . . . . . . . . . . . . . . 2 . . Cave-ins Triggered . | . . . . . . . . . . . . . . . . . . . . . . . . . . Exploration Rate (%) 55 | 3 96 36 88 91 12 81 47 87 40 70 20 43 85 90 52 8 73 79 75 53 3 81 51 27 44 Regions Visited 25 Branch Regions 11 Pre-discovered Areas 12 | . 4 . 1 2 . . . . . . . . . 5 . . . . . . . . . . . Known Exits Taken 9 | . . . . . 1 . 1 . 1 . 1 1 . . . . . . . 1 1 . 1 1 . Unknown Exits Taken 11 | 1 1 1 1 1 . . . . . . . . . 1 1 1 1 1 1 . . . . . . Scrap Searched 7 | . . 1 . 2 . . . . . . . . . . 4 . . . . . . . . . . Spaces Dug 50 | . 1 . . . . 2 . . 11 . . . . . . . 2 . . 3 . . 25 5 1 Terrain Destroyed 621 | . 3 . . . . 126 22 15 28 36 36 41 15 4 . 1 8 2 7 31 3 8 226 8 1 Melee 17 | . . . . . . 2 . . 10 . . . . . . . . . . . . . 3 1 1 Projectile 232 | . 3 . . . . 2 . . 2 2 1 13 2 4 . 1 8 2 7 31 3 7 137 7 . AOE 371 | . . . . . . 122 22 15 16 34 35 28 13 . . . . . . . . . 86 . . Terrain Rammed . | . . . . . . . . . . . . . . . . . . . . . . . . . . Walls Destroyed . | . . . . . . . . . . . . . . . . . . . . . . . . . . Machines Disabled . | . . . . . . . . . . . . . . . . . . . . . . . . . . Actions | -11 -10 -10 -10 -9 -8 -8 -8 -8 -7 -7 -7 -7 -7 -7 -7 -5 -5 -5 -5 -5 -4 -4 -4 -3 -3 --------- Run | Yrd Mat Min Exi Min Mat Gar Mat Gar Fac Gar Fac Sto Gar Rec Scr Fac Ext Cet Arc Hub Fac Gar Fac Res Tes Total 18939 | 63 830 290 452 595 162 940 466 1164 2354 1089 624 279 864 615 831 271 838 465 421 613 155 1022 2014 1070 452 Wait 1761 | . 125 5 . 1 18 77 10 41 344 68 . . 48 39 62 7 100 136 307 17 1 66 164 72 53 Move 14548 | 51 603 273 433 547 119 700 421 945 1788 803 566 246 640 530 758 210 502 272 103 500 129 773 1449 832 355 Hop 2 | . . . . . . . . . . . . . . . . . . . . . . . . . 2 Pick Up 188 | 4 18 . 4 5 5 12 2 12 18 20 3 . 6 1 3 9 1 4 . 2 7 16 19 14 3 Fast Attach 215 | 6 2 . . 1 2 8 3 11 13 14 7 9 9 4 2 5 7 12 2 8 7 13 35 24 11 Attach 172 | . 2 1 3 1 4 12 1 6 22 19 6 1 3 1 2 5 2 4 . 7 3 13 40 9 5 Detach 111 | . 1 . 3 . . 6 2 3 17 13 6 1 4 . 1 1 1 4 1 3 1 3 25 9 6 Swap 201 | . 8 . 1 2 1 14 7 16 18 4 . . 14 3 . 3 18 9 . 17 1 18 34 13 . Drop 236 | . 1 . 8 2 1 13 5 17 24 26 10 5 10 4 3 8 5 15 1 5 3 14 18 28 10 Fire 954 | 2 70 11 . 32 12 67 15 54 58 39 25 17 47 27 . 22 50 9 7 53 3 78 219 37 . Melee 144 | . . . . . . 7 . 11 45 13 1 . 20 . . 1 . . . . . . 7 32 7 Ram 11 | . . . . . . . . . 7 . . . . 1 . . . . . 1 . . 2 . . Kick . | . . . . . . . . . . . . . . . . . . . . . . . . . . Crush 2 | . . . . . . . . . . . . . . . . . . . . . . . 2 . . Escape Stasis 279 | . . . . . . 24 . 48 . 60 . . 63 . . . 56 . . . . 28 . . . Rewire 115 | . . . . 4 . . . . . 10 . . . 5 . . 96 . . . . . . . . Trap . | . . . . . . . . . . . . . . . . . . . . . . . . . . Miscellaneous . | . . . . . . . . . . . . . . . . . . . . . . . . . . Route ------- -11/Scrapyard -10/Materials (discovered 5 exits: [*Mat x3] / [*Min x2]) -10/Mines -10/Exiles (discovered 2 exits: [*Min x2]) -9/Mines (discovered 2 exits: *Mat x2) -8/Materials -8/Garrison (discovered 2 exits: *Mat x2) -8/Materials (discovered 2 exits: *Fac / Gar) -8/Garrison (discovered 3 exits: *Fac x3) -7/Factory (discovered 5 exits: [*Fac x2] / Sto x2 / Gar) -7/Garrison (discovered 3 exits: *Fac x3) -7/Factory (discovered 2 exits: *Sto x2) -7/Storage -7/Garrison (discovered 3 exits: *Rec x3) -7/Recycling (discovered 2 exits: *Fac / [*Scr]) -7/Scraptown -5/Factory (discovered 2 exits: *Fac / *Ext) -5/Extension (discovered 2 exits: *Fac / *Cet) -5/Cetus (discovered 2 exits: *Fac / [*Arc]) -5/Archives (discovered 3 exits: *Fac / *Hub x2) -5/Hub_04(d) (discovered 2 exits: *Fac x2) -4/Factory (discovered 3 exits: Upp x2 / Gar) -4/Garrison (discovered 2 exits: *Fac x2) -4/Factory (discovered 4 exits: *Res x2 / *Upp x2) -3/Research (discovered 2 exits: *Res / *Tes) -3/Testing History --------- Turn | Location | Event 15 | -11/Scrapyard | Discovered new exit (range 16) 72 | -11/Scrapyard | Entered Materials 210 | -10/Materials | Discovered new exit (range 16) 300 | -10/Materials | Build established: Mutant 307 | -10/Materials | Discovered new exit (range 13) 568 | -10/Materials | Discovered new exit (range 7) 689 | -10/Materials | Discovered new exit (range 13) 796 | -10/Materials | Learned location of Recycling (-7) 856 | -10/Materials | Learned Storage emergency access door positions 907 | -10/Materials | Learned Storage emergency access door positions 986 | -10/Materials | Discovered new exit (range 15) 1059 | -10/Materials | Learned location of Storage (-7) 1150 | -10/Materials | Entered Mines 1169 | -10/Mines | Assembled infested the area 1242 | -10/Mines | Deemed a non-threat by the Exiles lab entrance 1242 | -10/Mines | Discovered new exit (range 5) 1300 | -10/Mines | Learned Materials emergency access door positions 1576 | -10/Mines | Entered Exiles 1596 | -10/Exiles | Discovered new exit (range 15) 1612 | -10/Exiles | Met 8R-AWN 1630 | -10/Exiles | Met EX-HEX 1678 | -10/Exiles | Met EX-BIN 1696 | -10/Exiles | Aligned with FarCom system 1697 | -10/Exiles | Given EX-Vault access code 1739 | -10/Exiles | Opened EX-Vault 1758 | -10/Exiles | Found AWS/Autocannon 1760 | -10/Exiles | Found Superbattery 1767 | -10/Exiles | Found XL Autogun Array 1802 | -10/Exiles | Warned to stay clear of 0b10 Research branches 1841 | -10/Exiles | Met EX-DEC 1847 | -10/Exiles | Learned location of Zion (-7) 1898 | -10/Exiles | Visited The Gauntlet 2075 | -10/Exiles | Discovered new exit (range 14) 2153 | -10/Exiles | Stole three prototypes: Superbattery, XL Autogun Array, AWS/Autocannon 2153 | -10/Exiles | Entered Mines 2299 | -9/Mines | Discovered new exit (range 7) 2659 | -9/Mines | A weapon hastily lodged in a ceiling crevice suddenly fell to the ground 2749 | -9/Mines | Discovered new exit (range 5) 2787 | -9/Mines | Found a Scrap Suit stashed away for nefarious purposes 2790 | -9/Mines | Found Scrap Suit 2989 | -9/Mines | Entered Materials 2989 | -8/Materials | Evolved 4 slots: Utility x2, Weapon x2 3141 | -8/Materials | Garrison activated, responded to threat 3219 | -8/Materials | Identified exit to Garrison 3219 | -8/Materials | Entered Garrison 3324 | -8/Garrison | Build established: Scavenger-Skirmisher 3395 | -8/Garrison | Phase Generator disabled 3464 | -8/Garrison | Lost 3 parts (1p1n1w) 3565 | -8/Garrison | Garrison Relay disabled 3637 | -8/Garrison | Triggered checkpoint 3677 | -8/Garrison | Spotted B-75 Beast 3697 | -8/Garrison | Destroyed B-75 Beast 3724 | -8/Garrison | Lost 5 parts (1u4w) 3741 | -8/Garrison | Garrison Relay disabled 3753 | -8/Garrison | Learned Materials security intel 3973 | -8/Garrison | Build established: Skirmisher 3979 | -8/Garrison | Triggered checkpoint 3980 | -8/Garrison | Triggered checkpoint 4050 | -8/Garrison | Triggered checkpoint 4116 | -8/Garrison | Garrison Relay disabled 4186 | -8/Garrison | Core integrity fell below 50% 4222 | -8/Garrison | Discovered new exit (range 15) 4298 | -8/Garrison | Build established: Scavenger-Skirmisher 4341 | -8/Garrison | Triggered checkpoint 4489 | -8/Garrison | Triggered checkpoint 4692 | -8/Garrison | Discovered new exit (range 13) 4722 | -8/Garrison | Installed Relay Interface Framework 4797 | -8/Garrison | Entered Materials 5156 | -8/Materials | Garrison activated, responded to threat 5468 | -8/Materials | Discovered new exit (range 15) 5554 | -8/Materials | System corruption reached 10% 5718 | -8/Materials | Identified exit to Garrison 5718 | -8/Materials | Entered Garrison 5822 | -8/Garrison | Triggered checkpoint 5928 | -8/Garrison | Build established: Skirmisher 6048 | -8/Garrison | Triggered checkpoint 6050 | -8/Garrison | Triggered checkpoint 6121 | -8/Garrison | Destroyed 11 combat bots 6159 | -8/Garrison | Lost 4 parts (1p1n1u1w) 6162 | -8/Garrison | Triggered checkpoint 6232 | -8/Garrison | Build established: Bothacker-Skirmisher 6556 | -8/Garrison | Expanded RIF knowledge: Robot Detection 6614 | -8/Garrison | Triggered checkpoint 6661 | -8/Garrison | Garrison Relay disabled 6846 | -8/Garrison | Discovered new exit (range 13) 7135 | -8/Garrison | Triggered checkpoint 7205 | -8/Garrison | Discovered new exit (range 11) 7243 | -8/Garrison | Garrison Relay disabled 7530 | -8/Garrison | Discovered new exit (range 14) 7581 | -8/Garrison | Rescued a captive Derelict 7699 | -8/Garrison | Garrison Relay disabled 8001 | -8/Garrison | Entered Factory 8001 | -7/Factory | Accompanied by 2 allies 8001 | -7/Factory | Evolved 2 slots: Utility x2 8002 | -7/Factory | Identified exit to Storage 8003 | -7/Factory | FarCom data flow suspended 8303 | -7/Factory | Build established: Bothacker-Tank 8723 | -7/Factory | Cargo convoy interrupted 8896 | -7/Factory | Lost 3 allies 8965 | -7/Factory | Discovered new exit (range 15) 9601 | -7/Factory | First assault squad dispatched 9676 | -7/Factory | Allied Derelicts emerged from ambush trap array 9816 | -7/Factory | Lost 5 allies 10130 | -7/Factory | Discovered exit to Storage (range 25) 10130 | -7/Factory | Discovered new exit (range 48) 10223 | -7/Factory | Build established: Bothacker-Mutant 10349 | -7/Factory | Repaired Huge Storage Unit 11053 | -7/Factory | Garrison activated, responded to threat 11283 | -7/Factory | Identified exit to Garrison 11283 | -7/Factory | Entered Garrison 11319 | -7/Garrison | Triggered checkpoint 11380 | -7/Garrison | Garrison Relay disabled 11476 | -7/Garrison | Triggered checkpoint 11483 | -7/Garrison | Triggered checkpoint 11661 | -7/Garrison | Triggered checkpoint 11679 | -7/Garrison | Garrison Relay disabled 11827 | -7/Garrison | Triggered checkpoint 11950 | -7/Garrison | Discovered new exit (range 11) 11987 | -7/Garrison | Triggered checkpoint 12039 | -7/Garrison | Triggered checkpoint 12041 | -7/Garrison | Garrison Relay disabled 12085 | -7/Garrison | Found embedded Infiltrators 12122 | -7/Garrison | Build established: Bothacker-Gunner 12352 | -7/Garrison | Discovered new exit (range 12) 12429 | -7/Garrison | Triggered checkpoint 12509 | -7/Garrison | Discovered new exit (range 50) 12509 | -7/Garrison | Discovered new exit (range 7) 12509 | -7/Garrison | Discovered new exit (range 57) 12515 | -7/Garrison | Garrison Relay disabled 12698 | -7/Garrison | Expanded RIF knowledge: Alert ID Control 12741 | -7/Garrison | Triggered checkpoint 12761 | -7/Garrison | Garrison Relay disabled 12821 | -7/Garrison | Entered Factory 12821 | -7/Factory | Accompanied by 5 allies 13122 | -7/Factory | Build established: Bothacker-Tank 13229 | -7/Factory | Discovered exit to Storage (range 16) 13621 | -7/Factory | First assault squad dispatched 13623 | -7/Factory | Discovered exit to Storage (range 16) 13702 | -7/Factory | Entered Storage 13702 | -7/Storage | Accompanied by 2 allies 14125 | -7/Storage | Identified exit to Garrison 14125 | -7/Storage | Entered Garrison 14125 | -7/Garrison | Accompanied by 1 ally 14142 | -7/Garrison | Expanded RIF knowledge: Command Fork 14197 | -7/Garrison | Triggered checkpoint 14217 | -7/Garrison | Garrison Relay disabled 14237 | -7/Garrison | Triggered checkpoint 14317 | -7/Garrison | Core integrity fell below 50% 14437 | -7/Garrison | Build established: Botlord-Tank 14546 | -7/Garrison | Found embedded Infiltrators 14627 | -7/Garrison | Triggered checkpoint 14644 | -7/Garrison | Triggered checkpoint 14651 | -7/Garrison | Triggered checkpoint 14725 | -7/Garrison | Discovered new exit (range 8) 14836 | -7/Garrison | Triggered checkpoint 14867 | -7/Garrison | Garrison Relay disabled 14985 | -7/Garrison | Triggered checkpoint 15020 | -7/Garrison | Garrison Relay disabled 15072 | -7/Garrison | Discovered new exit (range 15) 15178 | -7/Garrison | Garrison Relay disabled 15261 | -7/Garrison | Discovered new exit (range 22) 15261 | -7/Garrison | Discovered new exit (range 20) 15261 | -7/Garrison | Discovered new exit (range 54) 15331 | -7/Garrison | Entered Recycling 15331 | -7/Recycling | Accompanied by 1 ally 15525 | -7/Recycling | Discovered new exit (range 8) 16124 | -7/Recycling | Scanned before Scraplab entrance 16145 | -7/Recycling | Entered Scraplab 16156 | -7/Recycling | Discovered new exit (range 3) 16205 | -7/Recycling | Entered Scraptown 16205 | -7/Scraptown | Accompanied by 2 allies 16205 | -7/Scraptown | System corruption cleaned by C-Scrubber 16425 | -7/Scraptown | Turned away by UFD registrar 16446 | -7/Scraptown | Visited The Evicted 16499 | -7/Scraptown | Visited TADAMA 16559 | -7/Scraptown | Discovered new exit (range 13) 16789 | -7/Scraptown | Visited Spacefarers 16817 | -7/Scraptown | Visited Artisan Demo Area 16914 | -7/Scraptown | Visited Assassins FH 17143 | -7/Scraptown | Visited Observation Area 17174 | -7/Scraptown | Visited Comm Corps 17377 | -7/Scraptown | Entered Factory 17377 | -5/Factory | Accompanied by 2 allies 17377 | -5/Factory | Evolved 4 slots: Power x1, Utility x3 17468 | -5/Factory | Discovered new exit (range 15) 17494 | -5/Factory | Identified exit to Factory 17645 | -5/Factory | Discovered new exit (range 10) 17798 | -5/Factory | Entered Extension 17798 | -5/Extension | Accompanied by 2 allies 17884 | -5/Extension | Rescued A7 17939 | -5/Extension | Rescued a captive Derelict 17945 | -5/Extension | Rescued a captive Derelict 18123 | -5/Extension | Rescued a captive Derelict 18123 | -5/Extension | Rescued a captive Derelict 18216 | -5/Extension | Rescued a captive Derelict 18231 | -5/Extension | Rescued a captive Derelict 18269 | -5/Extension | Spotted B-75 Beast 18333 | -5/Extension | Spotted B-75 Beast 18339 | -5/Extension | Hijacked Beast 6a control node with streamctrl_high 18342 | -5/Extension | Hijacked Beast 6b control node with streamctrl_high 18369 | -5/Extension | Destroyed Beast 6b 18490 | -5/Extension | Rescued a captive Derelict 18492 | -5/Extension | Rescued a captive Derelict 18610 | -5/Extension | Rescued a captive Derelict 18655 | -5/Extension | Rescued a captive Derelict 18870 | -5/Extension | Rescued a captive Derelict 18941 | -5/Extension | Discovered exit to Factory (range 10) 18943 | -5/Extension | Discovered new exit (range 6) 19072 | -5/Extension | Entered Cetus 19072 | -5/Cetus | Accompanied by 26 allies (A7) 19077 | -5/Cetus | Acquired a Cetus Manufacturing Module code from A7 19093 | -5/Cetus | Build established: Commander-Tank 19098 | -5/Cetus | Spotted Cetus Guard 19098 | -5/Cetus | Spotted Cetus Guard 19100 | -5/Cetus | Spotted Cetus Guard 19101 | -5/Cetus | Spotted Cetus Guard 19104 | -5/Cetus | Attached CPS modules to Cetus Guard 19106 | -5/Cetus | Attached CPS modules to Cetus Guard 19110 | -5/Cetus | Attached CPS modules to Cetus Guard 19121 | -5/Cetus | Allies destroyed Cetus Guard 19125 | -5/Cetus | Allies destroyed Cetus Guard 19134 | -5/Cetus | Allies destroyed Cetus Guard 19137 | -5/Cetus | Allies destroyed Cetus Guard 19155 | -5/Cetus | Lost 3 allies 19303 | -5/Cetus | Escorted A7 to Cetus Mainframe 19318 | -5/Cetus | Started Cetus Manufacturing Module 19339 | -5/Cetus | Discovered new exit (range 16) 19343 | -5/Cetus | Manufactured an Enhanced Grunt 19368 | -5/Cetus | Manufactured an Enhanced Grunt 19393 | -5/Cetus | Manufactured an Enhanced Grunt 19418 | -5/Cetus | Manufactured an Enhanced Grunt 19443 | -5/Cetus | Manufactured an Enhanced Grunt 19450 | -5/Cetus | Spotted Cetus Guard 19451 | -5/Cetus | Spotted Cetus Guard 19455 | -5/Cetus | Spotted Cetus Guard 19455 | -5/Cetus | Spotted Cetus Guard 19474 | -5/Cetus | Destroyed Cetus Guard 19481 | -5/Cetus | Discovered exit to Factory (range 16) 19483 | -5/Cetus | Allies destroyed Cetus Guard 19483 | -5/Cetus | Allies destroyed Cetus Guard 19484 | -5/Cetus | Allies destroyed Cetus Guard 19492 | -5/Cetus | Met Revision 17 19510 | -5/Cetus | Lost 8 allies 19753 | -5/Cetus | Entered Archives 19753 | -5/Archives | Accompanied by 18 allies (A7) 19758 | -5/Archives | Received a hacking code to weaken MAIN.C 19817 | -5/Archives | Discovered new exit (range 15) 19877 | -5/Archives | Discovered new exit (range 15) 20058 | -5/Archives | Build established: Botlord-Tank 20176 | -5/Archives | Discovered exit to Factory (range 15) 20268 | -5/Archives | Entered Hub_04(d) 20268 | -5/Hub_04(d) | Accompanied by 17 allies 20403 | -5/Hub_04(d) | Lost 3 allies 20566 | -5/Hub_04(d) | Disrupted transfer network 20768 | -5/Hub_04(d) | Discovered exit to Factory (range 4) 20820 | -5/Hub_04(d) | Identified exit to Garrison 20843 | -5/Hub_04(d) | Build established: Bothacker-Tank 21101 | -5/Hub_04(d) | Lost 3 allies 21196 | -5/Hub_04(d) | Lost 4 allies 21251 | -5/Hub_04(d) | Network Hub disabled 21258 | -5/Hub_04(d) | Spotted Lightning 21264 | -5/Hub_04(d) | Spotted Lightning 21276 | -5/Hub_04(d) | Spotted Lightning 21278 | -5/Hub_04(d) | Destroyed Lightning 21295 | -5/Hub_04(d) | Destroyed Lightning 21303 | -5/Hub_04(d) | Spotted Lightning 21305 | -5/Hub_04(d) | System corruption reached 10% 21305 | -5/Hub_04(d) | Spotted Lightning 21307 | -5/Hub_04(d) | Destroyed Lightning 21319 | -5/Hub_04(d) | Lost 4 allies 21341 | -5/Hub_04(d) | Destroyed Lightning 21344 | -5/Hub_04(d) | Discovered exit to Factory (range 8) 21356 | -5/Hub_04(d) | Lost 7 parts (1p3u3w) 21375 | -5/Hub_04(d) | Entered Factory 21375 | -4/Factory | Evolved 2 slots: Utility x2 21582 | -4/Factory | Identified exit to Upper Caves 21582 | -4/Factory | Watched by a mysterious "MATRIX" hacker 21625 | -4/Factory | First assault squad dispatched 21686 | -4/Factory | Identified exit to Garrison 21703 | -4/Factory | Entered Garrison 21777 | -4/Garrison | Triggered checkpoint 21844 | -4/Garrison | Garrison Relay disabled 22212 | -4/Garrison | Triggered checkpoint 22221 | -4/Garrison | Spotted B-86 Titan 22223 | -4/Garrison | Triggered checkpoint 22253 | -4/Garrison | Destroyed B-86 Titan 22292 | -4/Garrison | Lost 5 parts (1n3u1w) 22356 | -4/Garrison | Lost 4 parts (2u2w) 22527 | -4/Garrison | Triggered checkpoint 22613 | -4/Garrison | Build established: Scavenger-Tank 22635 | -4/Garrison | Triggered checkpoint 22742 | -4/Garrison | Garrison Relay disabled 22907 | -4/Garrison | Triggered checkpoint 22957 | -4/Garrison | Discovered new exit (range 13) 22980 | -4/Garrison | Rescued a captive Derelict 23052 | -4/Garrison | Build established: Botlord-Tank 23235 | -4/Garrison | Triggered checkpoint 23294 | -4/Garrison | Garrison Relay disabled 23426 | -4/Garrison | Discovered new exit (range 10) 23659 | -4/Garrison | Triggered checkpoint 23733 | -4/Garrison | Expanded RIF knowledge: Watcher Feeds 23856 | -4/Garrison | Garrison Relay disabled 24012 | -4/Garrison | Lost 3 allies 24229 | -4/Garrison | Entered Factory 24229 | -4/Factory | Accompanied by 1 ally 24651 | -4/Factory | Fabricated Biometal Heavy Treads (x1) 24778 | -4/Factory | Lost 3 parts (1n2u) 25476 | -4/Factory | Lost 3 allies 25556 | -4/Factory | Lost 5 parts (2u3w) 25599 | -4/Factory | Discovered exit to Upper Caves (range 37) 25670 | -4/Factory | Found Hvy. Reflective Plating 25686 | -4/Factory | System corruption reached 10% 25729 | -4/Factory | First assault squad dispatched 25934 | -4/Factory | Spotted B-86 Titan 26348 | -4/Factory | Lost 3 parts (2u1w) 26708 | -4/Factory | Build established: Bothacker-Tank 26992 | -4/Factory | System corruption reached 30% 27315 | -4/Factory | Lost 5 parts (1p2n2u) 27567 | -4/Factory | Build established: Bothacker-Mutant 27594 | -4/Factory | Discovered exit to Upper Caves (range 14) 27634 | -4/Factory | Lost 5 parts (1n4u) 27636 | -4/Factory | Core integrity fell below 50% 27676 | -4/Factory | Lost 5 parts (3n1u1w) 27701 | -4/Factory | Found Prototype Processor 27701 | -4/Factory | Identified Exp. Signal Interpreter 27888 | -4/Factory | Discovered new exit (range 22) 28169 | -4/Factory | Lost 6 parts (1p1n1u3w) 28222 | -4/Factory | Discovered new exit (range 10) 28234 | -4/Factory | Core integrity fell below 20% 28243 | -4/Factory | Identified exit to Research 28243 | -4/Factory | Entered Research 28243 | -3/Research | Evolved 2 slots: Propulsion x2 28249 | -3/Research | Lost 4 parts (1n3u) 28443 | -3/Research | Revision forces began assault on 0b10 28443 | -3/Research | Lost 3 parts (2p1n) 28488 | -3/Research | Met up with Revision 17++ 28703 | -3/Research | Found Prototype Device 28703 | -3/Research | Identified Exp. EM Disruption Field 28772 | -3/Research | Found Prototype Hackware 28772 | -3/Research | Identified Exp. System Shield 28943 | -3/Research | Research terminal network offline 29006 | -3/Research | Found Prototype Launcher 29006 | -3/Research | Identified Adv. Micro-nuke Launcher 29091 | -3/Research | Discovered new exit (range 19) 29158 | -3/Research | Identified exit to Research 29198 | -3/Research | Build established: Scavenger-Tank 29236 | -3/Research | Spotted Striker 29360 | -3/Research | Lost 13 parts (1p5n4u3w) 29376 | -3/Research | Core integrity fell below 50% 29399 | -3/Research | Discovered new exit (range 21) 29411 | -3/Research | Identified exit to Testing 29411 | -3/Research | Entered Testing 29428 | -3/Testing | Found Prototype Device 29428 | -3/Testing | Identified System Purifier 29712 | -3/Testing | Fabricated A-27 Freighter? 29734 | -3/Testing | Lost 9 parts (2p4n2u1w) 29758 | -3/Testing | Core integrity fell below 20% 29773 | -3/Testing | Core melted Last Messages --------------- 29757_ P-80 Master heat spiking. 29757_ P-80 Master critical meltdown. 29757_ Backup Power VII tumbles out of repair station. 29757_ Backup Laser VII tumbles out of repair station. 29757_ Backup Propulsion VII tumbles out of repair station. 29758_ P-80 Master critical meltdown. 29759_ System corrupted: Heat flow error (+217). 29760_ Overheating: Core damaged (-169). 29763_ Overheating: Exp. Signal Interpreter damaged (-3). 29764_ Overheating: Exp. Signal Interpreter damaged (-2). 29765_ Overheating: Exp. Signal Interpreter damaged (-1). 29766_ Overheating: Energy bleed (-10). 29766_ Dropped Centrium Medium Armor Plating. 29768_ Machine Analyzer broken. 29768_ Overheating: Short circuit. 29769_ Acquired Backup Propulsion VII. 29770_ Exp. Signal Interpreter broken. 29770_ Overheating: Short circuit. 29772_ Acquired Backup Propulsion VII. 29773_ Overheating: Core damaged (-247). Map ----- +----------------------------------------------------+ | ??????#################### #?????????????????????? | | ?????????????????????????# #?????????????????????? | | ?????????????????????????# #?????????????????????? | | ?????????????????????????# #?????????????????????? | | ??????????"""""??????????# #?????????????????????? | | ??????????""T""????####### #?????????????????????? | | ???????????????????# #?????????????????????? | | ???????????????????# #######?????????????????????? | | ???????????????????# #???????????????????????????? | | ???????????????????# #???????????????????????????? | | ???????????????????# #???????????????????????????? | | ???????????????????# #???????????????????????????? | | ???????????????????# #???????????????????????????? | | ???????????????????# #???????????????????????????? | | ###+######+######### #???????????????????????????? | | ###""""#????????????????????? | | T#????????????????????? | | #????????????????????? | | ########????????????????????? | | ?##+#######/##########???????????????????????????? | | ??????????# #?????????????????????????????? | | ??????????# #?????????????????????????????? | | ??????????# ########??????????????????????? | | ??????????# ##"""""#??????????????????????? | | ??????????# ##""R""######?????????????????? | | ??????????# ## [ @;;;;;#?????????????????? | | ??????????# # * ##????????????????? | | ??????????# # ;#????????????????? | | ??????????# # ! ;#????????????????? | | ??????????#####+###; ;#????????????????? | | ???????????# ;% % ;#????????????????? | | ???????????# ; ;#????????????????? | | ???????????# ; ##????????????????? | | ???????????# ; ;#????????????????? | | ?????????######+##+# [;#????????????????? | | ?????????# # ;#????????????????? | | ?????????# ]# ;#????????????????? | | ?????????# # ;#????????????????? | | ?????????# # ##????????????????? | | ?????????# ##" ;; #?????????????????? | | ?????????# ##"""S"""####?????????????????? | | ?????????# #?########????????????????????? | | ?????????# #?????????????????????????????? | | ?????????###########?????????????????????????????? | | ?????????????????????????????????????????????????? | | ?????????????????????????????????????????????????? | | ?????????????????????????????????????????????????? | | ?????????????????????????????????????????????????? | | ?????????????????????????????????????????????????? | | ?????????????????????????????????????????????????? | +----------------------------------------------------+ Best States ------------- Heat Dissipation 157 Energy Generation 45 Energy Capacity 1600 Matter Stores 300 Matter Capacity 300 Sight Range 22 Robot Scan Range 18 Terrain Scan Density 10 Jamming Range 16 Cloak Strength 3 Base Temperature (-) 200 Armor Coverage 1200 Resistance: KI 20 Resistance: TH 25 Weapon Shielding 66 Phase Shifting 10 Evasion (%) 70 Target Analysis 6 Core Analysis 6 Recoil Reduction 6 Kinecelleration 40 Salvage Targeting 4 Defensive Hacking 16 Relay Coupler Types 7 Relay Coupler Value 132 Authchip Count 1 Item Schematics ----------------- None Robot Schematics ------------------ None Fabricated ------------ Biometal Heavy Treads | x1 | -4/Factory | Preloaded A-27 Freighter | x1 | -3/Testing | Preloaded Repaired ---------- Huge Storage Unit | 40% | -7/Factory Studied --------- Wheel | -8/Materials | Hacked Shock Rifle | -8/Materials | Hacked Imp. Grenade Launcher | -8/Materials | Hacked Mni. Grenade Launcher | -8/Materials | Hacked Remote Datajack | -7/Factory | Hacked Alien Tech Used ----------------- None Achievements -------------- Drive-By Fitting Room Infodabbler Morally Flexible Tune-up Zeroed Repercussions Challenges ------------ None Game ------ Seed ActuatorFusionProtection Manual? 0 Play Time 04:42:13 Cumulative 354.8 hours Start 2026.08.21 @ 21:22:00 End 2026.08.22 @ 15:11:38 Sessions 5 Manual Loads 0 Difficulty Rogue Special Mode None Game No. 122 Rogue 121 Adventurer 1 Explorer 0 Win Type - Total 13 Types 11/1/1/0/0/0/0/0/0/0 Lore% 76 Gallery% 73 Achievement% 58 Wizard Run 0 Options --------- Layout 0 ASCII 1 Keyboard 1 Movement Vi Keybinds 0 Fullscreen 1 Font 36/Terminus++ Map View 76x50 Zoom Use 0% Tactical HUD 1 Map Filters NONE Filters NONE Steam SD RUN: 10b65b32-6333-40b4-b666-00613a30e1a2